[Event "*** SCC Grand Prix: Titled Tuesday Blitz"]
[Site "Chess.com"]
[Date "2020.09.08"]
[Round "1"]
[White "dretch"]
[Black "jeetjain"]
[Result "1-0"]
[WhiteElo "2773"]
[BlackElo "2398"]
[TimeControl "180+1"]
[EndTime "10:07:46 PDT"]
[Termination "dretch won by resignation"]

1. d4 {[%clk 0:02:59.6]} 1... d5 {[%clk 0:02:59.7]} 2. c4 {[%clk 0:02:59.6]}
2... e6 {[%clk 0:02:59.4]} 3. Nc3 {[%clk 0:02:59.5]} 3... Be7 {[%clk 0:02:58.9]}
4. cxd5 {[%clk 0:02:59.4]} 4... exd5 {[%clk 0:02:59.8]} 5. Bf4 {[%clk 0:03:00]}
5... Nf6 {[%clk 0:02:59.9]} 6. e3 {[%clk 0:02:58]} 6... Bf5 {[%clk 0:02:58.3]}
7. Qb3 {[%clk 0:02:56.6]} 7... Nc6 {[%clk 0:02:58.2]} 8. Nf3 {[%clk 0:02:52.8]}
8... O-O {[%clk 0:02:54.5]} 9. Be2 {[%clk 0:02:49.8]} 9... Na5 {[%clk
0:02:48.3]} 10. Qa4 {[%clk 0:02:48.4]} 10... c6 {[%clk 0:02:43.6]} 11. O-O
{[%clk 0:02:46.8]} 11... b5 {[%clk 0:02:42.7]} 12. Qd1 {[%clk 0:02:46.2]} 12...
Nc4 {[%clk 0:02:41.1]} 13. b3 {[%clk 0:02:41.3]} 13... Nb6 {[%clk 0:02:23.6]}
14. Ne5 {[%clk 0:02:38.4]} 14... Rc8 {[%clk 0:02:23.7]} 15. a4 {[%clk
0:02:30.3]} 15... b4 {[%clk 0:02:19.6]} 16. Na2 {[%clk 0:02:27.2]} 16... a5
{[%clk 0:02:19.6]} 17. Ba6 {[%clk 0:02:25.6]} 17... Rc7 {[%clk 0:02:05.4]} 18.
Nc1 {[%clk 0:02:23]} 18... Bd6 {[%clk 0:01:59.7]} 19. Bd3 {[%clk 0:02:19.2]}
19... Bxd3 {[%clk 0:01:49.8]} 20. Ncxd3 {[%clk 0:02:17.1]} 20... Ne4 {[%clk
0:01:50.1]} 21. Rc1 {[%clk 0:02:02.8]} 21... f6 {[%clk 0:01:47.3]} 22. Nf3
{[%clk 0:02:01.1]} 22... Bxf4 {[%clk 0:01:41.5]} 23. Nxf4 {[%clk 0:02:01.5]}
23... Qd6 {[%clk 0:01:24.4]} 24. Qd3 {[%clk 0:01:43.9]} 24... Rfc8 {[%clk
0:01:08.8]} 25. Qa6 {[%clk 0:01:38.8]} 25... c5 {[%clk 0:00:48.2]} 26. Qxa5
{[%clk 0:01:33.8]} 26... c4 {[%clk 0:00:39.2]} 27. Qb5 {[%clk 0:01:20.9]} 27...
Nc3 {[%clk 0:00:34.7]} 28. Rxc3 {[%clk 0:01:21]} 28... bxc3 {[%clk 0:00:34.7]}
29. a5 {[%clk 0:01:21.4]} 29... Nd7 {[%clk 0:00:19.3]} 30. b4 {[%clk 0:01:11]}
30... Rb8 {[%clk 0:00:17.8]} 31. Qxd5+ {[%clk 0:01:10.2]} 31... Qxd5 {[%clk
0:00:16.5]} 32. Nxd5 {[%clk 0:01:11.1]} 32... Ra7 {[%clk 0:00:15.2]} 33. Ne7+
{[%clk 0:01:01.9]} 33... Kf7 {[%clk 0:00:14.3]} 34. Nc6 {[%clk 0:01:02]} 34...
Rab7 {[%clk 0:00:11.2]} 35. a6 {[%clk 0:00:54.9]} 35... Rxb4 {[%clk 0:00:10.8]}
36. a7 {[%clk 0:00:54.9]} 36... Ra8 {[%clk 0:00:04.8]} 37. Nxb4 {[%clk
0:00:54.8]} 37... Rxa7 {[%clk 0:00:05.4]} 38. Rc1 {[%clk 0:00:51.3]} 38... Nb6
{[%clk 0:00:04.4]} 39. Ne1 {[%clk 0:00:51]} 39... Ra3 {[%clk 0:00:04.4]} 40.
Nec2 {[%clk 0:00:48.4]} 40... Rb3 {[%clk 0:00:05]} 41. e4 {[%clk 0:00:46.9]}
41... f5 {[%clk 0:00:04.9]} 42. exf5 {[%clk 0:00:45.4]} 42... Kf6 {[%clk
0:00:05.2]} 43. g4 {[%clk 0:00:45.4]} 43... h5 {[%clk 0:00:05.3]} 44. h3 {[%clk
0:00:44.7]} 44... Kg5 {[%clk 0:00:05.2]} 45. f3 {[%clk 0:00:44.3]} 45... Kf4
{[%clk 0:00:05]} 46. Kf2 {[%clk 0:00:44.2]} 46... Rb2 {[%clk 0:00:05.1]} 47. Re1
{[%clk 0:00:43.1]} 47... Nd5 {[%clk 0:00:03.4]} 48. Re4+ {[%clk 0:00:42.3]}
48... Kg5 {[%clk 0:00:03.4]} 49. Nxd5 {[%clk 0:00:37.2]} 49... Rxc2+ {[%clk
0:00:03.6]} 50. Ke3 {[%clk 0:00:37.5]} 50... Rh2 {[%clk 0:00:03.2]} 51. Nxc3
{[%clk 0:00:36.3]} 51... Rxh3 {[%clk 0:00:03.6]} 52. gxh5 {[%clk 0:00:33]} 52...
Kxf5 {[%clk 0:00:04.5]} 53. Re5+ {[%clk 0:00:32.2]} 53... Kf6 {[%clk 0:00:04.7]}
54. Ne4+ {[%clk 0:00:33.1]} 54... Kf7 {[%clk 0:00:04.4]} 55. Ng5+ {[%clk
0:00:33.8]} 1-0

[Event "*** SCC Grand Prix: Titled Tuesday Blitz"]
[Site "Chess.com"]
[Date "2020.09.08"]
[Round "1"]
[White "JesseKraai"]
[Black "HouseOfDurin"]
[Result "1-0"]
[WhiteElo "2510"]
[BlackElo "2113"]
[TimeControl "180+1"]
[EndTime "10:07:46 PDT"]
[Termination "JesseKraai won on time"]

1. d4 {[%clk 0:02:58.3]} 1... Nf6 {[%clk 0:02:59.5]} 2. c4 {[%clk 0:02:57.7]}
2... c5 {[%clk 0:02:59.2]} 3. e3 {[%clk 0:02:56.6]} 3... cxd4 {[%clk 0:02:58.1]}
4. exd4 {[%clk 0:02:56.5]} 4... g6 {[%clk 0:02:59]} 5. Nc3 {[%clk 0:02:55.9]}
5... Bg7 {[%clk 0:02:59.6]} 6. d5 {[%clk 0:02:54.4]} 6... O-O {[%clk 0:02:59.3]}
7. Nf3 {[%clk 0:02:54.7]} 7... d6 {[%clk 0:02:54.5]} 8. Bd3 {[%clk 0:02:52.5]}
8... Nbd7 {[%clk 0:02:53.9]} 9. O-O {[%clk 0:02:51.8]} 9... Ne5 {[%clk
0:02:53.6]} 10. Nxe5 {[%clk 0:02:51]} 10... dxe5 {[%clk 0:02:54.5]} 11. Re1
{[%clk 0:02:46.5]} 11... Nd7 {[%clk 0:02:42.5]} 12. Be3 {[%clk 0:02:22.7]} 12...
f5 {[%clk 0:02:40.7]} 13. f3 {[%clk 0:02:22.7]} 13... b6 {[%clk 0:02:26.2]} 14.
Bf2 {[%clk 0:02:22.6]} 14... Nf6 {[%clk 0:02:16.4]} 15. Bf1 {[%clk 0:02:13.7]}
15... e6 {[%clk 0:02:09.2]} 16. dxe6 {[%clk 0:02:05.8]} 16... Bxe6 {[%clk
0:02:10.1]} 17. Rxe5 {[%clk 0:02:04.5]} 17... Bf7 {[%clk 0:01:57.4]} 18. Re1
{[%clk 0:01:59.7]} 18... Rc8 {[%clk 0:01:52.6]} 19. Qb3 {[%clk 0:01:50.7]} 19...
Qc7 {[%clk 0:01:45.3]} 20. Rad1 {[%clk 0:01:44.6]} 20... Bxc4 {[%clk 0:01:39.9]}
21. Bxc4+ {[%clk 0:01:43.8]} 21... Qxc4 {[%clk 0:01:40.8]} 22. Re7 {[%clk
0:01:37.8]} 22... Qxb3 {[%clk 0:01:30.1]} 23. axb3 {[%clk 0:01:37]} 23... Rf7
{[%clk 0:01:30.2]} 24. Rxf7 {[%clk 0:01:16.6]} 24... Kxf7 {[%clk 0:01:31.1]} 25.
Nb5 {[%clk 0:01:16.2]} 25... Rc2 {[%clk 0:01:19.5]} 26. Bd4 {[%clk 0:01:14.6]}
26... a6 {[%clk 0:01:07.8]} 27. Nd6+ {[%clk 0:01:12.2]} 27... Ke6 {[%clk
0:01:08]} 28. Nc4 {[%clk 0:01:10.9]} 28... b5 {[%clk 0:01:01]} 29. Re1+ {[%clk
0:01:10.8]} 29... Kd7 {[%clk 0:00:57]} 30. Ne5+ {[%clk 0:01:07.6]} 30... Kd6
{[%clk 0:00:47.8]} 31. Rd1 {[%clk 0:01:04.4]} 31... Ke6 {[%clk 0:00:41.2]} 32.
Nd3 {[%clk 0:00:58.4]} 32... Nh5 {[%clk 0:00:32.2]} 33. Bxg7 {[%clk 0:00:54.5]}
33... Nxg7 {[%clk 0:00:33.1]} 34. Ra1 {[%clk 0:00:45.3]} 34... Rd2 {[%clk
0:00:28.2]} 35. Rxa6+ {[%clk 0:00:43.8]} 35... Kd5 {[%clk 0:00:24]} 36. Nf4+
{[%clk 0:00:32.2]} 36... Ke5 {[%clk 0:00:24]} 37. g3 {[%clk 0:00:31.4]} 37... g5
{[%clk 0:00:19.1]} 38. Ra7 {[%clk 0:00:27.2]} 38... gxf4 {[%clk 0:00:18.4]} 39.
Rxg7 {[%clk 0:00:27.2]} 39... fxg3 {[%clk 0:00:18.4]} 40. hxg3 {[%clk
0:00:27.5]} 40... Rxb2 {[%clk 0:00:18.2]} 41. Rxh7 {[%clk 0:00:27]} 41... Rxb3
{[%clk 0:00:18.6]} 42. Kg2 {[%clk 0:00:27.4]} 42... Rb2+ {[%clk 0:00:18.7]} 43.
Kh3 {[%clk 0:00:27.7]} 43... b4 {[%clk 0:00:18.2]} 44. f4+ {[%clk 0:00:26.7]}
44... Kf6 {[%clk 0:00:17.5]} 45. Rb7 {[%clk 0:00:25.9]} 45... Rb1 {[%clk
0:00:16.8]} 46. Rb6+ {[%clk 0:00:26.6]} 46... Kf7 {[%clk 0:00:15.6]} 47. Kh4
{[%clk 0:00:27.1]} 47... b3 {[%clk 0:00:12.6]} 48. Kg5 {[%clk 0:00:27.4]} 48...
b2 {[%clk 0:00:10.8]} 49. Kxf5 {[%clk 0:00:27.7]} 49... Ke7 {[%clk 0:00:11.1]}
50. g4 {[%clk 0:00:27.5]} 50... Kf7 {[%clk 0:00:10.4]} 51. g5 {[%clk 0:00:27.8]}
51... Kg7 {[%clk 0:00:10.3]} 52. Rb7+ {[%clk 0:00:28.1]} 52... Kf8 {[%clk
0:00:10]} 53. g6 {[%clk 0:00:28.3]} 53... Ke8 {[%clk 0:00:03.6]} 54. Kf6 {[%clk
0:00:24.8]} 54... Rf1 {[%clk 0:00:02.7]} 55. Rxb2 {[%clk 0:00:25.2]} 55... Rxf4+
{[%clk 0:00:02.7]} 56. Kg5 {[%clk 0:00:25.7]} 1-0

[Event "*** SCC Grand Prix: Titled Tuesday Blitz"]
[Site "Chess.com"]
[Date "2020.09.08"]
[Round "1"]
[White "bascheyaro"]
[Black "Mostii"]
[Result "1/2-1/2"]
[WhiteElo "2738"]
[BlackElo "2395"]
[TimeControl "180+1"]
[EndTime "10:07:47 PDT"]
[Termination "Game drawn - insufficient material"]

1. d4 {[%clk 0:02:47.9]} 1... e6 {[%clk 0:02:57.8]} 2. Nf3 {[%clk 0:02:47.8]}
2... Nf6 {[%clk 0:02:56.6]} 3. c4 {[%clk 0:02:47.3]} 3... b6 {[%clk 0:02:56.5]}
4. Nc3 {[%clk 0:02:47.6]} 4... Bb7 {[%clk 0:02:57.1]} 5. g3 {[%clk 0:02:47.4]}
5... g6 {[%clk 0:02:56.4]} 6. Bg2 {[%clk 0:02:47.6]} 6... Ne4 {[%clk 0:02:56.2]}
7. Qd3 {[%clk 0:02:39.5]} 7... Nxc3 {[%clk 0:02:55]} 8. Qxc3 {[%clk 0:02:40.4]}
8... Bg7 {[%clk 0:02:55.4]} 9. O-O {[%clk 0:02:40.2]} 9... O-O {[%clk
0:02:55.9]} 10. Bg5 {[%clk 0:02:35.5]} 10... Qe8 {[%clk 0:02:53.2]} 11. Qd2
{[%clk 0:02:35.1]} 11... d6 {[%clk 0:02:52.7]} 12. Bh6 {[%clk 0:02:30.5]} 12...
Nd7 {[%clk 0:02:52.6]} 13. Bxg7 {[%clk 0:02:25.1]} 13... Kxg7 {[%clk 0:02:53.5]}
14. Rfe1 {[%clk 0:02:20.4]} 14... a5 {[%clk 0:02:53.5]} 15. e4 {[%clk
0:02:19.1]} 15... e5 {[%clk 0:02:53.8]} 16. b3 {[%clk 0:02:13.6]} 16... Qe7
{[%clk 0:02:53.6]} 17. Rad1 {[%clk 0:02:07.1]} 17... Rae8 {[%clk 0:02:52]} 18.
h3 {[%clk 0:02:06.4]} 18... Bc8 {[%clk 0:02:50.6]} 19. Kh2 {[%clk 0:02:04.2]}
19... h6 {[%clk 0:02:50]} 20. Qc3 {[%clk 0:01:58.5]} 20... Qf6 {[%clk
0:02:35.3]} 21. a3 {[%clk 0:01:52]} 21... exd4 {[%clk 0:02:04.6]} 22. Qxd4
{[%clk 0:01:51.9]} 22... Bb7 {[%clk 0:01:54.8]} 23. b4 {[%clk 0:01:46.8]} 23...
axb4 {[%clk 0:01:47.4]} 24. axb4 {[%clk 0:01:47.7]} 24... Ne5 {[%clk 0:01:47.6]}
25. Nxe5 {[%clk 0:01:47.5]} 25... Qxe5 {[%clk 0:01:47.5]} 26. c5 {[%clk
0:01:26.9]} 26... bxc5 {[%clk 0:01:39.4]} 27. bxc5 {[%clk 0:01:26.6]} 27... dxc5
{[%clk 0:01:39.1]} 28. Qxe5+ {[%clk 0:01:21.6]} 28... Rxe5 {[%clk 0:01:40]} 29.
Rd7 {[%clk 0:01:21]} 29... Rfe8 {[%clk 0:01:38.2]} 30. Rxc7 {[%clk 0:01:13.4]}
30... Bxe4 {[%clk 0:01:37.8]} 31. f4 {[%clk 0:01:13.6]} 31... R5e6 {[%clk
0:01:34.7]} 32. Rxc5 {[%clk 0:01:10.1]} 32... Bxg2 {[%clk 0:01:29.4]} 33. Rxe6
{[%clk 0:01:10.1]} 33... Rxe6 {[%clk 0:01:30.3]} 34. Kxg2 {[%clk 0:01:10.6]}
34... Re3 {[%clk 0:01:30.3]} 35. f5 {[%clk 0:01:08.5]} 35... Kf6 {[%clk
0:01:24.6]} 36. g4 {[%clk 0:01:06.8]} 36... Ra3 {[%clk 0:01:20.8]} 37. fxg6
{[%clk 0:00:45.7]} 37... fxg6 {[%clk 0:01:19.8]} 38. h4 {[%clk 0:00:40]} 38...
Rb3 {[%clk 0:01:18.8]} 39. Rc6+ {[%clk 0:00:36.6]} 39... Kf7 {[%clk 0:01:18.9]}
40. Rc8 {[%clk 0:00:31.9]} 40... Ra3 {[%clk 0:01:17.9]} 41. Rc7+ {[%clk
0:00:27.1]} 41... Kf6 {[%clk 0:01:17.9]} 42. Rc6+ {[%clk 0:00:27.5]} 42... Kf7
{[%clk 0:01:18.1]} 43. Rd6 {[%clk 0:00:26.3]} 43... Rc3 {[%clk 0:01:17.1]} 44.
Rb6 {[%clk 0:00:19.9]} 44... Ra3 {[%clk 0:01:15.7]} 45. Rc6 {[%clk 0:00:15.5]}
45... Rb3 {[%clk 0:01:12.4]} 46. Rd6 {[%clk 0:00:15.2]} 46... Kg7 {[%clk
0:01:11.6]} 47. Rc6 {[%clk 0:00:14.6]} 47... Rd3 {[%clk 0:01:12]} 48. Rb6 {[%clk
0:00:14.7]} 48... Ra3 {[%clk 0:01:09.9]} 49. Rc6 {[%clk 0:00:14.7]} 49... Ra4
{[%clk 0:01:10.3]} 50. Kf3 {[%clk 0:00:14.4]} 50... Ra3+ {[%clk 0:01:10.6]} 51.
Kf4 {[%clk 0:00:14.7]} 51... Ra4+ {[%clk 0:01:10.9]} 52. Ke5 {[%clk 0:00:14.4]}
52... Rxg4 {[%clk 0:01:00]} 53. Rc7+ {[%clk 0:00:14.8]} 53... Kf8 {[%clk
0:01:00.1]} 54. Kf6 {[%clk 0:00:15.7]} 54... Ke8 {[%clk 0:01:00]} 55. Rh7 {[%clk
0:00:12.9]} 55... Rxh4 {[%clk 0:00:49.6]} 56. Rh8+ {[%clk 0:00:13]} 56... Kd7
{[%clk 0:00:49.4]} 57. Kxg6 {[%clk 0:00:13.9]} 57... Rh1 {[%clk 0:00:48.5]} 58.
Rxh6 {[%clk 0:00:13.6]} 58... Rg1+ {[%clk 0:00:48.6]} 59. Kh7 {[%clk 0:00:13.9]}
59... Re1 {[%clk 0:00:47.9]} 60. Rg6 {[%clk 0:00:14.5]} 60... Ke7 {[%clk
0:00:47.2]} 61. Kg7 {[%clk 0:00:15]} 61... Rf1 {[%clk 0:00:46.5]} 62. Rg5 {[%clk
0:00:15.1]} 62... Rf7+ {[%clk 0:00:46.3]} 63. Kg6 {[%clk 0:00:15.3]} 63... Rf6+
{[%clk 0:00:46.3]} 64. Kh5 {[%clk 0:00:15.8]} 64... Rd6 {[%clk 0:00:46.1]} 65.
Rf5 {[%clk 0:00:15.4]} 65... Ke6 {[%clk 0:00:46]} 66. Kg5 {[%clk 0:00:15.9]}
66... Rd5 {[%clk 0:00:45]} 67. Rxd5 {[%clk 0:00:15.6]} 67... Kxd5 {[%clk
0:00:45.9]} 1/2-1/2

[Event "*** SCC Grand Prix: Titled Tuesday Blitz"]
[Site "Chess.com"]
[Date "2020.09.08"]
[Round "1"]
[White "fighter2jz"]
[Black "sasko1234"]
[Result "0-1"]
[WhiteElo "2705"]
[BlackElo "2395"]
[TimeControl "180+1"]
[EndTime "10:07:47 PDT"]
[Termination "sasko1234 won by resignation"]

1. e4 {[%clk 0:02:53.9]} 1... d6 {[%clk 0:02:59.9]} 2. Nc3 {[%clk 0:02:52.2]}
2... Nf6 {[%clk 0:02:59.9]} 3. Nf3 {[%clk 0:02:51.5]} 3... Bg4 {[%clk
0:02:57.5]} 4. Be2 {[%clk 0:02:50.3]} 4... e6 {[%clk 0:02:57.4]} 5. O-O {[%clk
0:02:48.2]} 5... Be7 {[%clk 0:02:57]} 6. d4 {[%clk 0:02:48.1]} 6... d5 {[%clk
0:02:56.7]} 7. e5 {[%clk 0:02:47.5]} 7... Nfd7 {[%clk 0:02:56.6]} 8. h3 {[%clk
0:02:47]} 8... Bh5 {[%clk 0:02:56.2]} 9. Nb1 {[%clk 0:02:44.1]} 9... O-O {[%clk
0:02:52.2]} 10. Be3 {[%clk 0:02:42.9]} 10... c5 {[%clk 0:02:50.6]} 11. c3 {[%clk
0:02:40.3]} 11... Nc6 {[%clk 0:02:50.4]} 12. Nbd2 {[%clk 0:02:39.7]} 12... Rc8
{[%clk 0:02:32.4]} 13. a3 {[%clk 0:02:31.3]} 13... cxd4 {[%clk 0:02:16.9]} 14.
cxd4 {[%clk 0:02:30.8]} 14... a5 {[%clk 0:02:11.1]} 15. g4 {[%clk 0:02:28.8]}
15... Bg6 {[%clk 0:02:10.6]} 16. Ne1 {[%clk 0:02:20.7]} 16... Qb6 {[%clk
0:02:04.5]} 17. f4 {[%clk 0:02:09.1]} 17... f5 {[%clk 0:01:47.3]} 18. Nef3
{[%clk 0:01:56.9]} 18... fxg4 {[%clk 0:01:15.8]} 19. hxg4 {[%clk 0:01:54.4]}
19... Qxb2 {[%clk 0:01:10.9]} 20. f5 {[%clk 0:01:43.3]} 20... exf5 {[%clk
0:01:10.6]} 21. Rb1 {[%clk 0:01:42.9]} 21... Qxa3 {[%clk 0:01:09.7]} 22. Rb3
{[%clk 0:01:42.7]} 22... Qa2 {[%clk 0:01:03.4]} 23. Rxb7 {[%clk 0:01:40.7]}
23... Qa3 {[%clk 0:00:51.5]} 24. Rb3 {[%clk 0:01:23]} 24... Qa2 {[%clk
0:00:51.3]} 25. Rb7 {[%clk 0:00:48.3]} 25... Qa3 {[%clk 0:00:50.3]} 26. Bf2
{[%clk 0:00:48.2]} 26... fxg4 {[%clk 0:00:38.6]} 27. Rxd7 {[%clk 0:00:47.7]}
27... gxf3 {[%clk 0:00:38.5]} 28. Bxf3 {[%clk 0:00:48.6]} 28... Bf5 {[%clk
0:00:27.1]} 29. Bxd5+ {[%clk 0:00:35.2]} 29... Kh8 {[%clk 0:00:27.2]} 30. Rb7
{[%clk 0:00:29]} 30... Bh3 {[%clk 0:00:25.9]} 31. Rb3 {[%clk 0:00:28.1]} 31...
Qa2 {[%clk 0:00:22]} 32. Qh5 {[%clk 0:00:16.4]} 32... Bf5 {[%clk 0:00:17.5]} 33.
Nf3 {[%clk 0:00:11.2]} 33... Qe2 {[%clk 0:00:15]} 34. Re3 {[%clk 0:00:10.2]}
34... Qc2 {[%clk 0:00:14]} 35. Ng5 {[%clk 0:00:09.8]} 35... Bxg5 {[%clk
0:00:12.9]} 36. Qxg5 {[%clk 0:00:10.7]} 36... Nxd4 {[%clk 0:00:13.2]} 37. Rg3
{[%clk 0:00:11]} 37... Ne2+ {[%clk 0:00:12.9]} 38. Kh2 {[%clk 0:00:09.5]} 38...
Nxg3 {[%clk 0:00:13.5]} 39. Qxg3 {[%clk 0:00:10.4]} 39... Rc3 {[%clk 0:00:12.7]}
40. Qf4 {[%clk 0:00:09.2]} 40... Rcc8 {[%clk 0:00:11.7]} 41. Qe3 {[%clk
0:00:04.3]} 41... Bd3 {[%clk 0:00:11.2]} 42. Kg1 {[%clk 0:00:01.9]} 42... Bxf1
{[%clk 0:00:10.2]} 43. Kxf1 {[%clk 0:00:02.8]} 43... Qd1+ {[%clk 0:00:10.3]} 44.
Kg2 {[%clk 0:00:02.6]} 44... Qxd5+ {[%clk 0:00:10.2]} 45. Kg3 {[%clk 0:00:03.5]}
45... Qe6 {[%clk 0:00:10.1]} 0-1

[Event "*** SCC Grand Prix: Titled Tuesday Blitz"]
[Site "Chess.com"]
[Date "2020.09.08"]
[Round "1"]
[White "PavelChernomordik"]
[Black "PavelShkapenko"]
[Result "0-1"]
[WhiteElo "2351"]
[BlackElo "2684"]
[TimeControl "180+1"]
[EndTime "10:07:48 PDT"]
[Termination "PavelShkapenko won on time"]

1. e4 {[%clk 0:02:58.3]} 1... c5 {[%clk 0:02:59.1]} 2. Nc3 {[%clk 0:02:55.6]}
2... e6 {[%clk 0:02:57.5]} 3. f4 {[%clk 0:02:54.4]} 3... d5 {[%clk 0:02:56.5]}
4. Nf3 {[%clk 0:02:53.1]} 4... dxe4 {[%clk 0:02:54.9]} 5. Bb5+ {[%clk
0:02:50.8]} 5... Bd7 {[%clk 0:02:55]} 6. Bxd7+ {[%clk 0:02:49]} 6... Nxd7 {[%clk
0:02:55.4]} 7. Nxe4 {[%clk 0:02:46.4]} 7... Ngf6 {[%clk 0:02:55.7]} 8. Qe2
{[%clk 0:02:45.5]} 8... Be7 {[%clk 0:02:52.7]} 9. f5 {[%clk 0:02:44]} 9... Qb6
{[%clk 0:02:18.9]} 10. Nxf6+ {[%clk 0:02:36.5]} 10... Nxf6 {[%clk 0:02:18.7]}
11. fxe6 {[%clk 0:02:34.6]} 11... Qxe6 {[%clk 0:02:18.3]} 12. Qxe6 {[%clk
0:02:32.1]} 12... fxe6 {[%clk 0:02:18.7]} 13. O-O {[%clk 0:02:29.6]} 13... Nd5
{[%clk 0:02:12.7]} 14. c3 {[%clk 0:02:19]} 14... Bf6 {[%clk 0:02:10.5]} 15. Re1
{[%clk 0:02:17.1]} 15... Kf7 {[%clk 0:02:02.3]} 16. d3 {[%clk 0:02:15.8]} 16...
Rhd8 {[%clk 0:02:01]} 17. Bg5 {[%clk 0:02:12.8]} 17... Rd7 {[%clk 0:01:57.7]}
18. Ne5+ {[%clk 0:02:08.1]} 18... Bxe5 {[%clk 0:01:57.3]} 19. Rxe5 {[%clk
0:02:07.1]} 19... b6 {[%clk 0:01:50.2]} 20. Rf1+ {[%clk 0:02:05.8]} 20... Nf6
{[%clk 0:01:50.3]} 21. Rfe1 {[%clk 0:01:52.4]} 21... Re8 {[%clk 0:01:46.7]} 22.
R1e3 {[%clk 0:01:44.7]} 22... Ng4 {[%clk 0:01:42.4]} 23. Rf3+ {[%clk 0:01:43.5]}
23... Kg6 {[%clk 0:01:42.9]} 24. Bf4 {[%clk 0:01:33.8]} 24... Nxe5 {[%clk
0:01:41.7]} 25. Bxe5 {[%clk 0:01:33.7]} 25... h6 {[%clk 0:01:38.6]} 26. g4
{[%clk 0:01:24.6]} 26... Rf7 {[%clk 0:01:34.7]} 27. Re3 {[%clk 0:01:21.8]} 27...
Kh7 {[%clk 0:01:27.1]} 28. Kg2 {[%clk 0:01:18.7]} 28... b5 {[%clk 0:01:18.1]}
29. Bd6 {[%clk 0:01:13.6]} 29... c4 {[%clk 0:01:17.9]} 30. d4 {[%clk 0:01:11.7]}
30... Rd7 {[%clk 0:01:15.5]} 31. Bg3 {[%clk 0:01:08.9]} 31... a5 {[%clk
0:01:13.8]} 32. Re5 {[%clk 0:01:07.4]} 32... Rd5 {[%clk 0:01:12.7]} 33. Re2
{[%clk 0:01:04.6]} 33... b4 {[%clk 0:01:12.7]} 34. Be1 {[%clk 0:00:57.9]} 34...
Rb5 {[%clk 0:01:10.2]} 35. Kf3 {[%clk 0:00:47.3]} 35... Kg8 {[%clk 0:01:04.3]}
36. Ke4 {[%clk 0:00:45.3]} 36... Kf7 {[%clk 0:01:03.5]} 37. Rf2+ {[%clk
0:00:43.8]} 37... Ke7 {[%clk 0:01:03.3]} 38. Rf3 {[%clk 0:00:39.1]} 38... Rf8
{[%clk 0:01:00.6]} 39. Bh4+ {[%clk 0:00:37.1]} 39... g5 {[%clk 0:01:00.3]} 40.
Rxf8 {[%clk 0:00:34.5]} 40... Kxf8 {[%clk 0:01:00.7]} 41. Be1 {[%clk 0:00:34.1]}
41... Ke7 {[%clk 0:00:55.7]} 42. h4 {[%clk 0:00:29.6]} 42... gxh4 {[%clk
0:00:52.9]} 43. Bxh4+ {[%clk 0:00:27.6]} 43... Kf7 {[%clk 0:00:53.3]} 44. Be1
{[%clk 0:00:23.2]} 44... Kg6 {[%clk 0:00:53.2]} 45. Bd2 {[%clk 0:00:22.1]} 45...
bxc3 {[%clk 0:00:52.5]} 46. Bxc3 {[%clk 0:00:20.1]} 46... a4 {[%clk 0:00:52.2]}
47. a3 {[%clk 0:00:18.4]} 47... Kg5 {[%clk 0:00:52]} 48. Kf3 {[%clk 0:00:17.8]}
48... Rb7 {[%clk 0:00:46.8]} 49. Bd2+ {[%clk 0:00:17.9]} 49... Kg6 {[%clk
0:00:46.9]} 50. Bc1 {[%clk 0:00:14.7]} 50... Rb3+ {[%clk 0:00:40.5]} 51. Ke4
{[%clk 0:00:12.1]} 51... Rd3 {[%clk 0:00:40]} 52. Ke5 {[%clk 0:00:08.3]} 52...
Rd1 {[%clk 0:00:40]} 53. Bf4 {[%clk 0:00:03.4]} 53... Re1+ {[%clk 0:00:39]} 54.
Kd6 {[%clk 0:00:02.4]} 54... Re2 {[%clk 0:00:34.9]} 0-1